bitfinex/quotes_SOLUSD_20220302
["timestamp","ask_amount","ask_price","bid_price","bid_amount"]
[1646206163930,9.67257971,102.75,102.73,0.78823336]
[1646206164130,9.67257971,102.75,102.72,97.84]
[1646206164332,9.67257971,102.75,102.71,48.6603]
[1646206164533,9.67257971,102.75,102.72,14.5986]
[1646206164931,9.67257971,102.75,102.73,1.45072835]
[1646206165534,9.67257971,102.76,102.73,1.45072835]
[1646206166535,9.67257971,102.76,102.74,11.74760489]
[1646206166735,9.67257971,102.76,102.75,1.45044597]
[1646206166942,9.67257971,102.76,102.74,14.5973]
[1646206167942,0.00217644,102.78,102.74,112.4373]
[1646206168142,0.00217644,102.78,102.75,114.27831708]
[1646206168341,0.00217644,102.78,102.76,112.4301]
[1646206169344,0.00217644,102.78,102.77,1.12028128]
[1646206170646,0.00217644,102.78,102.74,14.5964]
[1646206170846,0.00217644,102.78,102.74,112.4364]
[1646206171049,0.00217644,102.78,102.74,124.99407016]
[1646206171247,0.00217644,102.78,102.74,27.15407016]
[1646206171446,0.00217644,102.78,102.74,14.5964]
[1646206172649,0.00217644,102.78,102.72,14.5993]
[1646206172948,51.67931907,102.77,102.72,14.5993]
[1646206173555,2.37689454,102.76,102.7,14.6021]
[1646206174349,52.61682625,102.75,102.7,14.6021]
[1646206176253,23.8718,102.77,102.71,1.30752895]
[1646206176655,23.8718,102.77,102.71,15.90892895]
[1646206176855,23.8718,102.77,102.71,14.6014]
[1646206177856,59.8421905,102.76,102.71,14.6014]
[1646206179658,54.8421905,102.76,102.71,14.6014]
[1646206179858,23.8718,102.77,102.72,5.98838315]
[1646206180058,0.00217644,102.78,102.72,14.6003]
[1646206180880,56.08971483,102.78,102.72,14.6003]
[1646206181080,67.62971483,102.78,102.72,14.6003]
[1646206182883,2.37689454,102.77,102.72,14.6003]
[1646206183084,47.55321103,102.76,102.72,14.6003]
[1646206183891,47.55321103,102.76,102.7,14.6021]
[1646206185490,49.92942961,102.76,102.7,14.6021]
[1646206188397,49.92942961,102.76,102.68,14.605]
[1646206188799,61.46942961,102.76,102.68,14.605]
[1646206189497,86.70112032,102.76,102.68,14.605]
[1646206190520,199.14822032,102.76,102.68,14.605]
[1646206190698,223.55014505,102.76,102.67,3.894]
[1646206190898,224.6908593,102.76,102.66,18.502]
[1646206192401,238.30238616,102.76,102.66,3.894]
[1646206192601,238.30238616,102.76,102.65,3.894]
[1646206192803,296.82238616,102.76,102.64,3.894]
[1646206193003,113.650883,102.74,102.64,3.894]
[1646206193204,70.07514283,102.73,102.64,24.84382765]
[1646206193403,70.07514283,102.73,102.65,14.6101]
[1646206193606,70.07514283,102.73,102.66,4.45470803]
[1646206194406,70.07514283,102.73,102.66,0.55970803]
[1646206194606,70.07514283,102.73,102.68,18.98989794]
[1646206194806,58.53514283,102.73,102.68,18.98989794]
[1646206195407,58.53514283,102.73,102.67,3.895]
[1646206196206,58.53514283,102.73,102.68,30.21343073]
[1646206196406,57.8869,102.75,102.68,30.21343073]
[1646206197210,57.8869,102.75,102.68,14.6046]
[1646206198011,57.8869,102.75,102.69,3.894]
[1646206198411,58.436588,102.74,102.69,3.894]
[1646206200137,11.54,102.73,102.69,3.894]
[1646206200339,56.40890952,102.72,102.66,14.608]
[1646206201338,67.94890952,102.72,102.64,14.6108]
[1646206201540,94.72705283,102.72,102.64,14.6108]
[1646206201737,70.3251281,102.72,102.64,14.6108]
[1646206201944,67.94890952,102.72,102.64,14.6108]
[1646206202141,70.3251281,102.72,102.64,14.6108]
[1646206202341,58.7851281,102.72,102.67,14.6069]
[1646206202542,56.40890952,102.72,102.68,3.57859771]
[1646206202744,46.3469,102.75,102.68,3.57859771]
[1646206203140,11.54,102.77,102.68,3.57859771]
[1646206203341,36.4916,102.77,102.68,108.96359771]
[1646206203541,24.9516,102.77,102.68,108.96359771]
[1646206203744,24.9516,102.77,102.7,97.84]
[1646206203941,60.87419541,102.78,102.71,115.42082642]
[1646206204142,60.87419541,102.78,102.71,121.72582642]
[1646206204343,0.00217644,102.78,102.71,121.72582642]
[1646206204743,0.00217644,102.78,102.73,97.84]
[1646206205143,0.00217644,102.78,102.74,2.54904003]
[1646206205345,0.00217644,102.78,102.75,97.84]
[1646206205543,0.00217644,102.78,102.76,1.72927405]
[1646206205744,5.0,102.85,102.78,97.84]
[1646206205945,130.1493012,102.91,102.78,105.713]
[1646206205946,15.43,102.9,102.78,105.713]
[1646206206344,43.21635233,102.89,102.79,17.58082642]
[1646206206543,53.17595182,102.89,102.81,3.92870926]
[1646206206745,53.17595182,102.89,102.8,112.4259]
[1646206206942,43.21635233,102.89,102.8,112.4259]
[1646206207146,65.45266277,102.89,102.8,112.4259]
[1646206207444,43.21635233,102.89,102.8,112.4259]
[1646206207645,43.21635233,102.89,102.82,97.84]
[1646206207843,43.21635233,102.89,102.84,14.5825]
[1646206208043,43.21635233,102.89,102.84,112.4225]
[1646206208245,43.21635233,102.89,102.85,15.12271931]
[1646206208443,112.9,102.91,102.85,112.96271931]
[1646206208644,1.4541637,102.92,102.85,97.84]
[1646206209046,1.4541637,102.92,102.86,112.4199]
[1646206209445,1.4541637,102.92,102.86,14.5799]
[1646206209648,50.39735438,102.91,102.86,14.5799]
[1646206210446,1.4541637,102.92,102.86,17.12894003]
[1646206211345,3.887,102.98,102.86,17.12894003]
[1646206211547,29.4226,102.99,102.89,14.5718]
[1646206211747,33.3066,102.99,102.89,14.5718]
[1646206212148,55.19624377,102.99,102.89,14.5718]
[1646206212447,173.05399375,102.99,102.89,112.4118]
[1646206212745,4.9026998,103.03,102.9,11.54]
[1646206212946,4.9026998,103.03,102.93,14.5655]
[1646206213546,51.67356281,103.02,102.94,17.40217483]
[1646206213746,51.67356281,103.02,102.92,48.5514]
[1646206213947,51.67356281,103.02,102.94,14.5672]
[1646206214347,51.67356281,103.02,102.89,63.8589]
[1646206214546,73.53653992,103.02,102.9,11.54]
[1646206214750,77.42053992,103.02,102.89,58.8589]
[1646206214948,11.54,103.01,102.9,14.5728]
[1646206215151,72.50588139,103.02,102.9,14.5728]
[1646206215348,66.24566281,103.02,102.9,14.5728]
[1646206215549,77.78566281,103.02,102.9,14.5728]
[1646206215848,63.21356281,103.02,102.91,17.88945166]
[1646206216048,51.67356281,103.02,102.94,14.5653]
[1646206216251,51.67356281,103.02,102.95,3.62008402]
[1646206216549,3.7894179,103.05,102.95,3.62008402]
[1646206216748,3.7894179,103.05,102.95,15.16008402]
[1646206216950,3.7894179,103.05,102.95,29.72548402]
[1646206217149,3.7894179,103.05,102.95,18.18548402]
[1646206217352,10.04851163,103.05,102.95,18.18548402]
[1646206217548,42.73959679,103.04,102.95,18.18548402]
[1646206218752,42.73959679,103.04,102.95,32.27452405]
[1646206219653,3.7894179,103.05,102.98,14.5595]
[1646206220655,54.50875868,103.05,102.99,17.88945166]
[1646206221056,54.50875868,103.05,102.99,32.44775166]
[1646206221254,3.7894179,103.05,102.99,32.44775166]
[1646206221456,3.7894179,103.05,102.99,46.164587]
[1646206221658,3.7894179,103.05,103.0,2.54904003]
[1646206221855,3.7894179,103.05,103.0,14.08904003]
[1646206222058,3.7894179,103.05,103.0,11.54]
[1646206222256,53.22956472,103.05,103.0,11.54]
[1646206222461,49.44014682,103.05,102.99,17.88945166]
[1646206223258,49.44014682,103.05,102.97,26.101]
[1646206223459,49.44014682,103.05,102.96,11.54]
[1646206223665,51.81624055,103.05,102.97,5.0]
[1646206224460,49.44014682,103.05,102.97,5.0]
[1646206224661,49.44014682,103.05,102.96,17.46917033]
[1646206224860,49.44014682,103.05,102.95,14.564]
[1646206225068,51.81624055,103.05,102.95,14.564]
[1646206225561,75.68696671,103.05,102.93,26.1058]
[1646206225860,75.68696671,103.05,102.93,21.32199923]
[1646206225861,57.99120239,103.03,102.93,21.32199923]
[1646206226260,60.36729612,103.03,102.92,23.1119]
[1646206226662,110.57597016,103.03,102.9,24.6475]
[1646206226861,242.94711681,103.03,102.89,14.5717]
[1646206227065,3.884,103.02,102.89,14.5717]
[1646206227265,55.09670228,103.01,102.89,14.5717]
[1646206227465,79.88243978,103.01,102.89,14.5717]
[1646206227670,2.37609373,103.0,102.89,14.5717]
[1646206228166,13.91609373,103.0,102.89,14.5717]
[1646206228369,59.89452304,102.99,102.89,31.66358611]
[1646206228572,62.27061677,102.99,102.87,19.5748]
[1646206228770,2.37609373,102.98,102.87,5.0]
[1646206228971,2.37609373,102.98,102.82,72.993]
[1646206228972,12.93744468,102.97,102.82,72.993]
[1646206229172,12.93744468,102.97,102.82,77.993]
[1646206229173,14.5809,102.96,102.82,77.993]
[1646206229475,47.62680154,102.95,102.83,29.75583751]
[1646206229678,47.62680154,102.95,102.83,32.30487754]
[1646206229876,47.62680154,102.95,102.84,97.84]
[1646206230076,47.62680154,102.95,102.85,22.87189817]
[1646206230479,47.62680154,102.95,102.85,17.87189817]
[1646206231278,59.16680154,102.95,102.85,17.87189817]
[1646206232281,59.16680154,102.95,102.85,115.71189817]
[1646206232481,59.16680154,102.95,102.85,17.87189817]
[1646206232681,47.62680154,102.95,102.85,17.87189817]
[1646206232883,6.26309373,103.01,102.88,14.5718]
[1646206232884,3.887,102.99,102.88,14.5718]
[1646206233085,3.884,103.0,102.95,13.56279224]
[1646206233308,2.37609373,102.98,102.95,13.56279224]
[1646206233508,28.49640417,103.0,102.95,13.56279224]
[1646206233909,45.46886899,102.99,102.87,48.5727]
[1646206234110,71.34890118,102.98,102.82,72.993]
[1646206234310,101.727,102.97,102.82,77.993]
[1646206234511,97.84,102.95,102.82,72.993]
[1646206234710,11.54,102.94,102.82,72.993]
[1646206234913,11.54,102.94,102.83,15.50142463]
[1646206235115,58.95642349,102.93,102.83,15.50142463]
[1646206236117,58.95642349,102.93,102.83,30.08262463]
[1646206237415,156.79642349,102.93,102.83,30.08262463]
[1646206237614,170.71251722,102.93,102.83,30.08262463]
[1646206237815,170.71251722,102.93,102.83,15.50142463]
[1646206239015,87.45721722,102.93,102.83,15.50142463]
[1646206240816,72.87251722,102.93,102.83,15.50142463]
[1646206241014,70.49642349,102.93,102.83,15.50142463]
[1646206241214,70.49642349,102.93,102.84,97.84]
[1646206241415,70.49642349,102.93,102.85,6.00820329]
[1646206241817,58.95642349,102.93,102.85,20.58740329]
[1646206242218,48.0201,102.96,102.86,97.84]
[1646206242516,48.0201,102.96,102.85,6.00820329]
[1646206243117,59.70500478,102.95,102.85,103.84820329]
[1646206243332,59.70500478,102.95,102.85,6.00820329]
[1646206243819,157.54500478,102.95,102.85,6.00820329]
[1646206244019,2.37609373,102.94,102.85,6.00820329]
[1646206244221,66.91099463,102.93,102.85,6.00820329]
[1646206244421,66.91099463,102.93,102.84,14.5806]
[1646206244818,69.28708836,102.93,102.84,14.5806]
[1646206245221,66.91099463,102.93,102.84,14.5806]
[1646206245418,66.91099463,102.93,102.84,33.00443754]
[1646206246421,164.75099463,102.93,102.84,33.00443754]
[1646206246621,66.91099463,102.93,102.84,33.00443754]
[1646206246824,55.37099463,102.93,102.87,14.5765]
[1646206247023,55.37099463,102.93,102.88,16.79906774]
[1646206247423,48.0201,102.96,102.88,16.79906774]
[1646206248126,48.0201,102.96,102.88,31.37466774]
[1646206248331,60.35666181,102.95,102.88,31.37466774]
[1646206250126,48.0201,102.96,102.88,129.21466774]
[1646206250328,26.12231044,102.99,102.88,136.96166774]
[1646206250530,15.426,102.99,102.88,136.96166774]
[1646206250731,68.3199,103.0,102.88,139.51070777]
[1646206251131,60.29390314,102.99,102.9,97.84]
[1646206251331,60.29390314,102.99,102.92,14.5701]
[1646206251534,68.3199,103.0,102.93,16.79906774]
[1646206251733,36.34599135,103.02,102.93,16.79906774]
[1646206251945,47.8983,103.03,102.93,16.79906774]
[1646206252144,47.8983,103.03,102.93,19.34810777]
[1646206252547,96.4801959,103.03,102.94,97.84]
[1646206252745,96.4801959,103.03,102.95,4.71056018]
[1646206252946,96.4801959,103.03,102.97,14.5629]
[1646206253146,48.5818959,103.03,102.98,16.79906774]
[1646206253346,54.60150417,103.06,102.98,16.79906774]
[1646206253748,24.80599135,103.05,102.98,16.79906774]
[1646206254147,24.80599135,103.05,102.98,31.36186774]
[1646206254345,53.55574551,103.04,102.98,31.36186774]
[1646206255047,53.55574551,103.04,102.98,14.5628]
[1646206255447,16.94119373,103.06,102.98,14.5628]
[1646206255850,2.37609373,103.05,102.98,14.5628]
[1646206256452,46.47435435,103.04,102.98,14.5628]
[1646206256650,46.47435435,103.04,102.97,15.69528226]
[1646206256852,58.52,103.02,102.94,5.0]
[1646206257050,71.29794907,103.01,102.85,10.14164293]
[1646206257251,5.0,103.0,102.85,10.14164293]
[1646206257450,109.38,102.99,102.85,10.14164293]
[1646206257652,135.28751384,102.99,102.86,14.5783]
[1646206257852,97.84,102.95,102.86,34.57883361]
[1646206258050,11.54,102.94,102.86,34.57883361]
[1646206258249,43.2634383,102.94,102.86,34.57883361]
[1646206260351,43.2634383,102.94,102.84,24.73239805]
[1646206260556,11.54,102.93,102.82,47.3845]
[1646206260753,34.73847606,102.93,102.81,138.55623887]
[1646206260954,61.22722781,102.93,102.81,138.55623887]
[1646206261357,93.03225338,102.92,102.82,18.92826945]
[1646206261556,11.54,102.91,102.82,18.92826945]
[1646206261754,57.7172498,102.9,102.81,89.95193887]
[1646206261954,69.2572498,102.9,102.81,10.15353887]
[1646206262455,57.7172498,102.9,102.81,10.15353887]
[1646206262857,57.7172498,102.9,102.82,21.43360104]
[1646206263055,57.7172498,102.9,102.82,36.01670104]
[1646206264057,33.49789373,102.94,102.82,133.85670104]
[1646206264257,33.49789373,102.94,102.82,136.0504996]
[1646206264858,33.49789373,102.94,102.82,36.01670104]
[1646206265059,53.98857072,102.93,102.82,36.01670104]
[1646206265259,177.95177072,102.93,102.82,36.01670104]
[1646206265658,180.32786445,102.93,102.82,36.01670104]
[1646206266058,82.48786445,102.93,102.82,133.85670104]
[1646206266460,82.48786445,102.93,102.82,36.01670104]
[1646206266659,28.49929373,102.93,102.82,36.01670104]
[1646206266859,5.0,102.94,102.83,11.54]
[1646206267060,5.0,102.94,102.87,14.5766]
[1646206268259,57.26109941,102.93,102.87,14.5766]
[1646206268659,71.4582,102.96,102.87,14.5766]
[1646206269663,56.14429573,102.95,102.87,14.5766]
[1646206272562,56.14429573,102.95,102.87,112.4166]
[1646206272763,71.4582,102.96,102.87,112.4166]
[1646206273361,13.91609373,102.99,102.87,112.4166]
[1646206273563,11.54,102.99,102.87,112.4166]
[1646206273762,51.87967706,102.98,102.87,112.4166]
[1646206273962,51.87967706,102.98,102.87,123.9566]
[1646206274565,51.87967706,102.98,102.87,128.9566]
[1646206275162,149.71967706,102.98,102.87,123.9566]
[1646206275362,149.71967706,102.98,102.87,128.9566]
[1646206276462,149.71967706,102.98,102.87,123.9566]
[1646206276663,149.71967706,102.98,102.87,128.9566]
[1646206277265,149.71967706,102.98,102.87,123.9566]
[1646206277466,149.71967706,102.98,102.87,128.9566]
[1646206277667,149.71967706,102.98,102.87,123.9566]
[1646206277867,149.71967706,102.98,102.87,128.9566]
[1646206278667,51.87967706,102.98,102.87,123.9566]
[1646206279068,51.87967706,102.98,102.87,31.1166]
[1646206279269,51.87967706,102.98,102.87,26.1166]
[1646206279471,51.87967706,102.98,102.87,31.1166]
[1646206279669,97.84,102.97,102.87,14.5766]
[1646206279869,97.84,102.95,102.85,14.5808]
[1646206280070,52.55385032,102.94,102.85,14.5808]
[1646206281673,52.55385032,102.94,102.85,112.4208]
[1646206281874,52.55385032,102.94,102.85,14.5808]
[1646206282275,52.55385032,102.94,102.86,97.84]
[1646206282474,46.5034,102.96,102.88,14.5749]
[1646206283476,54.09447054,102.95,102.88,14.5749]
[1646206284681,151.93447054,102.95,102.88,14.5749]
[1646206284981,154.31056427,102.95,102.86,19.5795]
[1646206285380,56.47056427,102.95,102.86,19.5795]
[1646206285780,154.31056427,102.95,102.86,19.5795]
[1646206285981,154.31056427,102.95,102.86,14.5795]
[1646206286281,165.85056427,102.95,102.86,14.5795]
[1646206286882,163.47447054,102.95,102.86,14.5795]
[1646206287084,65.63447054,102.95,102.86,14.5795]
[1646206287881,163.47447054,102.95,102.86,14.5795]
[1646206288283,97.84,102.93,102.84,14.5821]
[1646206288492,97.84,102.91,102.79,5.0767097]
[1646206288683,97.84,102.89,102.79,5.0767097]
[1646206288885,109.38,102.88,102.79,5.0767097]
[1646206289085,97.84,102.88,102.77,5.0]
[1646206289285,97.84,102.86,102.77,21.21252208]
[1646206289486,46.06732708,102.85,102.78,14.5909]
[1646206289689,46.06732708,102.85,102.79,5.29710584]
[1646206290287,11.54,102.87,102.79,5.29710584]
[1646206290485,25.16309373,102.89,102.79,5.29710584]
[1646206290486,34.327,102.89,102.79,19.88700584]
[1646206290688,22.787,102.89,102.79,19.88700584]
[1646206290988,22.787,102.89,102.79,25.97300584]
[1646206291187,46.21934078,102.88,102.79,25.97300584]
[1646206291988,46.21934078,102.88,102.79,19.88700584]
[1646206292889,144.05934078,102.88,102.79,19.88700584]
[1646206293089,46.21934078,102.88,102.79,19.88700584]
[1646206293290,57.75934078,102.88,102.79,19.88700584]
[1646206293689,2.37609373,102.87,102.79,14.5899]
[1646206293891,111.75609373,102.87,102.79,14.5899]
[1646206294289,2.37609373,102.86,102.79,14.5899]
[1646206294691,43.34128249,102.85,102.79,14.5899]
[1646206295291,2.37609373,102.84,102.77,14.592]
[1646206295694,152.72128249,102.85,102.75,52.1969]
[1646206295892,2.37609373,102.84,102.75,5.0]
[1646206296093,97.84,102.83,102.75,5.0]
[1646206296394,142.05113861,102.82,102.75,5.0]
[1646206296594,44.21113861,102.82,102.75,5.0]
[1646206296992,44.21113861,102.82,102.75,14.5948]
[1646206297496,142.05113861,102.82,102.75,14.5948]
[1646206297892,44.21113861,102.82,102.75,14.5948]
[1646206299395,142.05113861,102.82,102.75,14.5948]
[1646206299596,44.21113861,102.82,102.75,14.5948]
[1646206300717,44.21113861,102.82,102.76,15.6571315]
[1646206302523,44.21113861,102.82,102.76,14.5944]
[1646206303021,44.21113861,102.82,102.76,21.9824]
[1646206303220,7.82106096,102.81,102.76,21.9824]
[1646206304419,7.82106096,102.81,102.77,20.96938071]
[1646206304620,7.82106096,102.81,102.78,14.5916]
[1646206305223,7.82106096,102.81,102.79,2.64326614]
[1646206306024,7.82106096,102.81,102.8,0.54024721]
[1646206306223,7.82106096,102.82,102.8,0.54024721]
[1646206306622,7.82106096,102.82,102.81,0.1321376]
[1646206307222,7.82106096,102.82,102.79,14.5902]
[1646206307922,7.82106096,102.82,102.8,0.13215045]
[1646206309324,7.82106096,102.82,102.79,14.5902]
[1646206309525,7.82106096,102.82,102.8,0.13215045]
[1646206309725,7.82106096,102.82,102.77,14.5921]
[1646206310130,7.82106096,102.82,102.74,5.0]
[1646206310327,59.4837922,102.81,102.74,16.82794594]
[1646206310927,7.82106096,102.8,102.71,15.24484798]
[1646206311125,7.82106096,102.8,102.71,5.08209369]
[1646206311126,105.66106096,102.8,102.71,5.08209369]
[1646206311326,11.54,102.79,102.7,5.0]
[1646206311726,7.82106096,102.8,102.7,5.0]
[1646206311926,7.82106096,102.8,102.71,15.14129487]
[1646206312225,7.82106096,102.8,102.72,14.5991]
[1646206312428,7.82106096,102.8,102.72,119.2831]
[1646206312628,7.82106096,102.8,102.72,121.5354204]
[1646206313030,7.82106096,102.8,102.72,124.08446043]
[1646206313228,7.82106096,102.8,102.73,6.36833305]
[1646206313430,7.82106096,102.8,102.75,14.5913]
[1646206313626,7.82106096,102.8,102.76,15.14129487]
[1646206314026,157.086,102.86,102.76,15.14129487]
[1646206314027,7.82106096,102.83,102.76,15.14129487]
[1646206315030,7.82106096,102.83,102.77,14.5909]
[1646206315231,7.82106096,102.83,102.78,6.36833305]
[1646206315430,7.82106096,102.83,102.75,146.4764]
[1646206315630,7.82106096,102.83,102.75,48.6364]
[1646206316428,7.82106096,102.83,102.76,16.88654043]
[1646206316429,62.68673901,102.83,102.76,16.88654043]
[1646206317030,62.68673901,102.83,102.78,14.5909]
[1646206317231,62.68673901,102.83,102.78,19.21398749]
[1646206317833,7.82106096,102.83,102.78,19.21398749]
[1646206318233,7.82106096,102.85,102.78,19.21398749]
[1646206319033,57.93269263,102.85,102.75,48.6364]
[1646206319238,11.54,102.84,102.72,5.0]
[1646206319439,97.84,102.82,102.72,5.0]
[1646206319638,163.91922656,102.82,102.7,24.7664027]
[1646206319935,97.84,102.78,102.71,34.12815082]
[1646206320137,97.84,102.76,102.71,34.12815082]
[1646206320339,63.74892685,102.75,102.7,14.6021]
[1646206320536,52.20892685,102.75,102.7,14.6021]
[1646206321036,97.84,102.78,102.67,48.6787]
[1646206321239,11.54,102.77,102.67,48.6787]
[1646206321438,7.82106096,102.77,102.67,48.6787]
[1646206321639,7.82106096,102.77,102.68,3.894]
[1646206322039,68.62596365,102.77,102.69,30.08490717]
[1646206322238,68.62596365,102.77,102.7,3.892]
[1646206322437,68.62596365,102.77,102.7,18.4941]
[1646206322840,68.62596365,102.77,102.71,6.01562075]
[1646206323041,166.46596365,102.77,102.7,14.6021]
[1646206324039,7.82106096,102.77,102.71,27.95974592]
[1646206324239,7.82106096,102.77,102.72,14.5979]
[1646206324439,7.82106096,102.79,102.72,14.5979]
[1646206324639,7.82106096,102.79,102.72,112.4379]
[1646206324840,7.82106096,102.79,102.73,3.892]
[1646206325139,7.82106096,102.79,102.74,8.140782]
[1646206325540,45.4525445,102.78,102.74,8.140782]
[1646206326040,7.82106096,102.79,102.74,22.735982]
[1646206327743,7.82106096,102.82,102.76,14.5917]
[1646206328341,54.76550628,102.82,102.77,27.95974592]
[1646206328542,54.76550628,102.82,102.75,5.0]
[1646206328840,54.76550628,102.82,102.73,17.78133392]
[1646206328841,7.82106096,102.82,102.73,17.78133392]
[1646206329042,7.82106096,102.82,102.76,14.5943]
[1646206329747,7.82106096,102.82,102.77,33.29955109]
[1646206330545,7.82106096,102.82,102.77,131.13955109]
[1646206330742,7.82106096,102.82,102.78,112.4313]
[1646206330946,7.82106096,102.83,102.78,112.4313]
[1646206331144,7.82106096,102.83,102.78,14.5913]
[1646206331543,15.431,102.89,102.79,140.0]
[1646206331743,48.17233875,102.91,102.83,14.5824]
[1646206331943,14.5834,102.94,102.83,14.5824]
[1646206332243,26.1234,102.94,102.83,14.5824]
[1646206332643,97.84,102.93,102.83,14.5824]
[1646206332945,45.48112517,102.92,102.83,14.5824]
[1646206333544,45.48112517,102.92,102.84,97.84]
[1646206333743,45.48112517,102.92,102.85,14.5815]
[1646206334945,22.32863189,102.96,102.85,121.4865]
[1646206335145,22.32863189,102.96,102.85,23.6465]
[1646206335146,11.54,102.96,102.85,23.6465]
[1646206335347,75.9085,102.97,102.85,35.1865]
[1646206335545,3.886,102.96,102.85,35.1865]
[1646206336046,48.7107079,102.95,102.85,35.1865]
[1646206336247,48.7107079,102.95,102.88,14.5763]
[1646206338249,146.5507079,102.95,102.86,14.5793]
[1646206338458,146.5507079,102.95,102.84,23.7342]
[1646206339453,158.0907079,102.95,102.84,23.7342]
[1646206340051,172.6719079,102.95,102.84,38.3161]
[1646206340253,177.6719079,102.95,102.84,38.3161]
[1646206340657,177.6719079,102.95,102.84,42.2031]
[1646206340855,172.6719079,102.95,102.84,14.5819]
[1646206341058,177.6719079,102.95,102.84,14.5819]
[1646206341256,195.53662986,102.95,102.84,14.5819]
[1646206341457,177.6719079,102.95,102.84,14.5819]
[1646206341656,177.6719079,102.95,102.85,3.887]
[1646206341860,177.6719079,102.95,102.85,18.4681]
[1646206342085,177.6719079,102.95,102.85,14.5811]
[1646206344283,196.11253979,102.95,102.85,14.5811]
[1646206344484,196.11253979,102.95,102.83,23.4703]
[1646206344685,194.99953979,102.95,102.83,18.4703]
[1646206344884,194.99953979,102.95,102.83,23.44922685]
[1646206344885,48.7107079,102.95,102.83,23.44922685]
[1646206345085,48.7107079,102.95,102.84,11.54]
[1646206345383,48.7107079,102.95,102.86,146.418]
[1646206345586,48.7107079,102.95,102.86,157.958]
[1646206345783,48.7107079,102.95,102.87,3.887]
[1646206345983,48.7107079,102.95,102.87,18.4604]
[1646206346187,48.7107079,102.95,102.87,112.4134]
[1646206346384,48.7107079,102.95,102.87,121.4114]
[1646206346583,48.7107079,102.95,102.87,126.4114]
[1646206347285,46.7107079,102.95,102.88,2.05054512]
[1646206347484,46.7107079,102.95,102.89,14.5746]
[1646206347687,46.7107079,102.95,102.9,26.42780838]
[1646206348087,46.7107079,102.95,102.89,14.5746]
[1646206349093,46.953,102.97,102.9,28.36109271]
[1646206349386,46.953,102.97,102.9,42.93509271]
[1646206350287,47.25740859,102.97,102.9,42.93509271]
[1646206351292,47.25740859,102.97,102.9,14.574]
[1646206352194,47.25740859,102.97,102.9,44.48075376]
[1646206352791,24.6472,102.99,102.9,44.48075376]
[1646206353391,24.4581,103.0,102.9,44.48075376]
[1646206353590,29.9963,103.02,102.9,142.32075376]
[1646206353793,44.20156483,102.99,102.9,142.32075376]
[1646206354590,44.20156483,102.99,102.9,153.86075376]
[1646206357093,44.20156483,102.99,102.9,61.02075376]
[1646206357693,44.20156483,102.99,102.9,56.02075376]
[1646206357894,44.20156483,102.99,102.9,44.48075376]
[1646206359198,142.04156483,102.99,102.9,44.48075376]
[1646206359395,44.20156483,102.99,102.9,44.48075376]
[1646206361198,44.20156483,102.99,102.9,49.48075376]
[1646206362399,44.20156483,102.99,102.9,147.32075376]
[1646206362600,47.6551,103.0,102.9,147.32075376]
[1646206363700,57.50925405,102.99,102.9,147.32075376]
[1646206365703,57.50925405,102.99,102.9,49.48075376]
[1646206367204,57.50925405,102.99,102.9,147.32075376]
[1646206367807,57.50925405,102.99,102.9,142.32075376]
[1646206368107,57.50925405,102.99,102.91,5.0]
[1646206368306,57.50925405,102.99,102.93,14.57]
[1646206372611,57.50925405,102.99,102.91,14.5718]
[1646206373110,65.18225405,102.99,102.91,14.5718]
[1646206373311,163.02225405,102.99,102.89,5.0]
[1646206373511,174.56225405,102.99,102.89,5.0]
[1646206373711,174.56225405,102.99,102.88,25.27270668]
[1646206374315,174.56225405,102.99,102.87,96.8218]
[1646206374612,208.23425183,102.99,102.86,8.886]
[1646206374812,212.12025183,102.99,102.86,3.886]
[1646206375013,214.49299421,102.99,102.86,3.886]
[1646206375413,214.49299421,102.99,102.86,29.13209741]
[1646206376013,214.49299421,102.99,102.87,14.5777]
[1646206376217,273.01299421,102.99,102.87,14.5777]
[1646206376418,274.20668833,102.99,102.87,14.5777]
[1646206376617,291.27824793,102.99,102.87,14.5777]
[1646206376820,302.30989067,102.99,102.86,3.886]
[1646206377318,14.5819,102.94,102.86,3.886]
[1646206377514,53.52851912,102.93,102.85,14.5805]
[1646206378415,151.36851912,102.93,102.85,14.5805]
[1646206379015,151.36851912,102.93,102.85,37.09109347]
[1646206380619,53.52851912,102.93,102.85,37.09109347]